fUST/lending_fUST_20250615
["ID","MTS","AMOUNT","RATE_DAILY","PERIOD"]
[365891345,1749975042282,-1554.15,0.00022739,4]
[365891347,1749975042291,-574.44,0.00022739,4]
[365891349,1749975042301,-2276.37,0.00022739,4]
[365891351,1749975042310,-654.7,0.00022739,4]
[365891353,1749975042320,-1684.16,0.00022739,4]
[365891355,1749975042330,-3480.64135151,0.00022759,2]
[365891357,1749975042339,-2098.80716058,0.00022866,8]
[365891359,1749975042349,-4249.19,0.00022921,2]
[365891361,1749975042359,-604.606277,0.00022964,2]
[365891363,1749975042368,-162.60086731,0.00022986,2]
[365891366,1749975042378,-5000.0,0.00022996,2]
[365891368,1749975042387,-1000.0,0.00023,23]
[365891370,1749975042397,-1780.51,0.00023,7]
[365891372,1749975042406,-2098.80716058,0.00023003,8]
[365891374,1749975042416,-151.0,0.00023004,7]
[365891376,1749975042425,-151.0,0.00023004,7]
[365891378,1749975042435,-151.0,0.00023013,7]
[365891380,1749975042444,-151.0,0.00023013,7]
[365891382,1749975042454,-151.0,0.00023013,7]
[365891384,1749975042463,-579.98,0.00023013,4]
[365891386,1749975042472,-476.02,0.00023013,4]
[365891387,1749975042482,-151.0,0.00023013,7]
[365891390,1749975042492,-664.77,0.00023013,4]
[365891391,1749975042501,-154.693772,0.00023013,7]
[365891394,1749975042516,-383.560932,0.00023013,7]
[365891396,1749975042525,-383.560932,0.00023013,7]
[365891398,1749975042535,-526.58,0.00023013,4]
[365891400,1749975042545,-151.0,0.00023013,7]
[365891402,1749975042555,-460.0,0.00023013,2]
[365891404,1749975042564,-151.0,0.00023013,7]
[365891406,1749975042574,-2426.14,0.00023013,4]
[365891408,1749975042583,-842.31,0.00023013,4]
[365891410,1749975042593,-460.0,0.00023013,4]
[365891412,1749975042604,-499.39,0.00023013,4]
[365891414,1749975042613,-403.81319913,0.00023013,4]
[365891416,1749975042622,-460.0,0.00023013,4]
[365891418,1749975042632,-3243.66,0.00023013,4]
[365891420,1749975042641,-460.0,0.00023013,4]
[365891422,1749975042651,-569.04,0.00023013,4]
[365891424,1749975042660,-2736.88,0.00023013,4]
[365891426,1749975042670,-522.56,0.00023013,4]
[365891428,1749975042680,-841.3,0.00023013,4]
[365891430,1749975042689,-3703.19,0.00023013,4]
[365891432,1749975042703,-3048.92,0.00023013,4]
[365891434,1749975042712,-2924.58,0.00023013,4]
[365891436,1749975042722,-564.7,0.00023013,4]
[365891438,1749975042731,-460.0,0.00023013,4]
[365891441,1749975042741,-460.0,0.00023013,4]
[365891443,1749975042750,-606.84,0.00023013,4]
[365891445,1749975042760,-460.0,0.00023013,4]
[365891447,1749975042771,-1203.76,0.00023013,4]
[365891449,1749975042782,-845.25843836,0.00023013,7]
[365891451,1749975042791,-151.0,0.00023013,7]
[365891453,1749975042801,-1551.83,0.00023013,4]
[365891455,1749975042810,-186.980213,0.00023013,7]
[365891457,1749975042819,-186.980213,0.00023013,7]
[365891459,1749975042829,-1455.59,0.00023013,4]
[365891461,1749975042838,-460.0,0.00023013,4]
[365891463,1749975042847,-460.0,0.00023013,4]
[365891465,1749975042858,-566.41,0.00023013,4]
[365891467,1749975042867,-460.28,0.00023013,4]
[365891469,1749975042876,-460.0,0.00023013,4]
[365891471,1749975042886,-460.0,0.00023013,4]
[365891473,1749975042895,-829.02,0.00023013,4]
[365891475,1749975042905,-1462.87,0.00023013,4]
[365891477,1749975042914,-460.0,0.00023013,4]
[365891479,1749975042923,-460.0,0.00023013,4]
[365891481,1749975042932,-1687.78,0.00023013,4]
[365891483,1749975042942,-472.55,0.00023013,4]
[365891485,1749975042951,-379.214472,0.00023013,2]
[365891487,1749975042960,-460.0,0.00023013,4]
[365891489,1749975042971,-460.0,0.00023013,4]
[365891490,1749975042980,-735.37,0.00023013,4]
[365891491,1749975042989,-379.214472,0.00023013,2]
[365891492,1749975042998,-460.0,0.00023013,4]
[365891493,1749975043008,-460.0,0.00023013,4]
[365891494,1749975043019,-460.0,0.00023013,4]
[365891495,1749975043030,-1751.81,0.00023013,4]
[365891496,1749975043039,-460.0,0.00023013,4]
[365891497,1749975043050,-460.0,0.00023013,4]
[365891498,1749975043058,-460.0,0.00023013,4]
[365891499,1749975043068,-441.44472345,0.00023013,4]
[365891500,1749975043077,-2193.18,0.00023013,4]
[365891501,1749975043086,-460.0,0.00023013,4]
[365891502,1749975043095,-460.0,0.00023013,4]
[365891503,1749975043105,-460.0,0.00023013,4]
[365891504,1749975043114,-1554.15,0.00023013,4]
[365891506,1749975043124,-574.44,0.00023013,4]
[365891507,1749975043135,-2276.37,0.00023013,4]
[365891509,1749975043144,-654.7,0.00023013,4]
[365891511,1749975043153,-1684.16,0.00023013,4]
[365891513,1749975043163,-500.0,0.00023035,2]
[365891515,1749975043172,-500.0,0.00023043,2]
[365891517,1749975043181,-502.02931313,0.00023067,2]
[365891519,1749975043191,-1500.0,0.00023068,2]
[365891520,1749975043200,-500.0,0.00023069,2]
[365891521,1749975043209,-252.66161971,0.0002307,2]
[365891522,1749975043219,-500.0,0.00023077,2]
[365891523,1749975043228,-500.0,0.0002308,2]
[365891524,1749975043238,-500.0,0.0002308,2]
[365891525,1749975043247,-500.0,0.0002308,2]
[365891526,1749975043257,-500.0,0.00023085,2]
[365891527,1749975043266,-500.0,0.00023086,2]
[365891528,1749975043276,-730.1414796,0.00023096,2]
[365891529,1749975043285,-304.26549004,0.00023118,2]
[365891531,1749975043294,-500.0,0.00023129,2]
[365891533,1749975043305,-2160.0,0.00023136,2]
[365891534,1749975043314,-653.0,0.00023136,2]
[365891535,1749975043324,-2098.80716058,0.00023141,8]
[365891536,1749975043334,-168.0,0.00023153,2]
[365891537,1749975043344,-500.0,0.00023169,2]
[365891538,1749975043354,-590.75,0.000232,7]
[365891539,1749975043364,-500.0,0.00023206,2]
[365891541,1749975043374,-500.0,0.00023219,2]
[365891542,1749975043383,-1559.986097,0.0002322,3]
[365891543,1749975043393,-500.0,0.00023223,2]
[365891545,1749975043402,-3480.64135151,0.00023229,2]
[365891547,1749975043411,-500.0,0.00023253,2]
[365891548,1749975043421,-500.0,0.00023259,2]
[365891549,1749975043430,-2098.80716058,0.00023279,8]
[365891550,1749975043439,-151.0,0.00023287,7]
[365891551,1749975043449,-579.98,0.00023287,4]
[365891552,1749975043458,-476.02,0.00023287,4]
[365891553,1749975043467,-664.77,0.00023287,4]
[365891554,1749975043477,-526.58,0.00023287,4]
[365891555,1749975043486,-151.0,0.00023287,7]
[365891556,1749975043494,-151.824491,0.00023287,7]
[365891557,1749975043504,-460.0,0.00023287,2]
[365891558,1749975043513,-151.0,0.00023287,7]
[365891559,1749975043522,-151.0,0.00023287,7]
[365891560,1749975043532,-151.0,0.00023287,7]
[365891561,1749975043541,-174.088022,0.00023287,7]
[365891562,1749975043551,-2426.14,0.00023287,4]
[365891563,1749975043560,-842.31,0.00023287,4]
[365891564,1749975043570,-151.0,0.00023287,7]
[365891565,1749975043579,-500.0,0.00023287,4]
[365891566,1749975043588,-499.39,0.00023287,4]
[365891567,1749975043598,-151.0,0.00023287,7]
[365891568,1749975043607,-460.0,0.00023287,4]
[365891569,1749975043616,-3243.66,0.00023287,4]
[365891570,1749975043626,-460.0,0.00023287,4]
[365891571,1749975043635,-569.04,0.00023287,4]
[365891576,1749975043767,-2736.88,0.00023287,4]
[365891577,1749975043780,-522.56,0.00023287,4]
[365891578,1749975043790,-841.3,0.00023287,4]
[365891579,1749975043799,-3703.19,0.00023287,4]
[365891580,1749975043809,-3048.92,0.00023287,4]
[365891581,1749975043819,-2924.58,0.00023287,4]
[365891582,1749975043828,-564.7,0.00023287,4]
[365891583,1749975043838,-255.03019116,0.00023287,4]
[365891584,1749975043847,-460.0,0.00023287,4]
[365891585,1749975043857,-606.84,0.00023287,4]
[365891586,1749975043867,-151.0,0.00023287,7]
[365891587,1749975043877,-460.0,0.00023287,4]
[365891588,1749975043886,-1203.76,0.00023287,4]
[365891589,1749975043895,-1551.83,0.00023287,4]
[365891590,1749975043904,-1455.59,0.00023287,4]
[365891591,1749975043913,-460.0,0.00023287,4]
[365891592,1749975043926,-151.0,0.00023287,7]
[365891593,1749975043935,-460.0,0.00023287,4]
[365891594,1749975043945,-566.41,0.00023287,4]
[365891595,1749975043954,-460.28,0.00023287,4]
[365891596,1749975043964,-460.0,0.00023287,4]
[365891597,1749975043974,-460.0,0.00023287,4]
[365891598,1749975043983,-829.02,0.00023287,4]
[365891599,1749975043993,-152.495924,0.00023287,7]
[365891600,1749975044003,-1462.87,0.00023287,4]
[365891601,1749975044039,-152.436696,0.00023287,7]
[365891602,1749975044050,-460.0,0.00023287,4]
[365891603,1749975044059,-460.0,0.00023287,4]
[365891604,1749975044069,-1687.78,0.00023287,4]
[365891605,1749975044079,-472.55,0.00023287,4]
[365891606,1749975044089,-460.0,0.00023287,4]
[365891607,1749975044099,-460.0,0.00023287,4]
[365891608,1749975044108,-735.37,0.00023287,4]
[365891609,1749975044117,-460.0,0.00023287,4]
[365891610,1749975044127,-460.0,0.00023287,4]
[365891611,1749975044137,-460.0,0.00023287,4]
[365891612,1749975044147,-1751.81,0.00023287,4]
[365891613,1749975044156,-460.0,0.00023287,4]
[365891614,1749975044165,-460.0,0.00023287,4]
[365891615,1749975044174,-460.0,0.00023287,4]
[365891616,1749975044184,-2193.18,0.00023287,4]
[365891617,1749975044193,-327.42361,0.00023287,7]
[365891618,1749975044202,-460.0,0.00023287,4]
[365891619,1749975044212,-327.42361,0.00023287,7]
[365891620,1749975044221,-460.0,0.00023287,4]
[365891621,1749975044230,-460.0,0.00023287,4]
[365891622,1749975044240,-1554.15,0.00023287,4]
[365891623,1749975044249,-574.44,0.00023287,4]
[365891624,1749975044258,-2276.37,0.00023287,4]
[365891625,1749975044268,-654.7,0.00023287,4]
[365891626,1749975044279,-1684.16,0.00023287,4]
[365891627,1749975044288,-215.0738,0.0002329,2]
[365891628,1749975044298,-500.0,0.00023351,2]
[365891629,1749975044308,-500.0,0.00023357,2]
[365891630,1749975044318,-3000.0,0.000234,2]
[365891631,1749975044327,-151.0,0.000234,7]
[365891632,1749975044337,-186.980213,0.000234,7]
[365891633,1749975044347,-186.980213,0.000234,7]
[365891634,1749975044356,-379.214472,0.000234,2]
[365891635,1749975044366,-379.214472,0.000234,2]
[365891636,1749975044375,-3000.0,0.0002341,2]
[365891637,1749975044385,-2098.80716058,0.00023417,9]
[365891638,1749975044395,-3000.0,0.0002342,2]
[365891639,1749975044404,-151.0,0.0002342,7]
[365891640,1749975044414,-500.0,0.00023423,2]
[365891641,1749975044423,-3000.0,0.0002343,2]
[365891642,1749975044433,-3000.0,0.0002344,2]
[365891643,1749975044442,-151.0,0.0002344,7]
[365891644,1749975044452,-151.0,0.0002344,7]
[365891645,1749975044462,-383.560932,0.0002344,7]
[365891646,1749975044472,-383.560932,0.0002344,7]
[365891647,1749975044481,-3000.0,0.0002345,2]
[365891648,1749975044491,-3000.0,0.0002346,2]
[365891649,1749975044501,-3000.0,0.0002347,2]
[365891650,1749975044510,-3000.0,0.0002348,2]
[365891651,1749975044520,-3000.0,0.0002349,2]
[365891652,1749975044530,-3000.0,0.000235,2]
[365891653,1749975044539,-151.0,0.000235,6]
[365891654,1749975044549,-2855.95146406,0.00023502,2]
[365891655,1749975044558,-3000.0,0.0002351,2]
[365891656,1749975044567,-3000.0,0.0002352,2]
[365891657,1749975044578,-500.0,0.00023525,2]
[365891658,1749975044587,-964.0,0.00023526,2]
[365891659,1749975044597,-3000.0,0.0002353,2]
[365891660,1749975044607,-3000.0,0.0002354,2]
[365891661,1749975044617,-3000.0,0.0002355,2]
[365891662,1749975044628,-611.0,0.00023552,2]
[365891663,1749975044638,-2098.80716058,0.00023555,9]
[365891664,1749975044647,-5597.461033,0.0002356,2]
[365891665,1749975044656,-579.98,0.00023561,4]
[365891666,1749975044665,-476.02,0.00023561,4]
[365891667,1749975044675,-200.0,0.00023561,4]
[365891668,1749975044684,-200.0,0.00023561,4]
[365891669,1749975044694,-200.0,0.00023561,4]
[365891670,1749975044708,-200.0,0.00023561,4]
[365891671,1749975044718,-200.0,0.00023561,4]
[365891672,1749975044728,-200.0,0.00023561,4]
[365891673,1749975044738,-200.0,0.00023561,4]
[365891674,1749975044748,-664.77,0.00023561,4]
[365891675,1749975044757,-526.58,0.00023561,4]
[365891676,1749975044767,-151.0,0.00023561,7]
[365891677,1749975044779,-460.0,0.00023561,2]
[365891678,1749975044789,-153.29865,0.00023561,7]
[365891679,1749975044798,-151.0,0.00023561,7]
[365891680,1749975044808,-151.0,0.00023561,7]
[365891681,1749975044818,-2426.14,0.00023561,4]
[365891682,1749975044827,-842.31,0.00023561,4]
[365891683,1749975044837,-151.0,0.00023561,7]
[365891684,1749975044847,-499.39,0.00023561,4]
[365891685,1749975044857,-151.0,0.00023561,7]
[365891686,1749975044868,-460.0,0.00023561,4]
[365891687,1749975044877,-3243.66,0.00023561,4]
[365891688,1749975044887,-460.0,0.00023561,4]
[365891689,1749975044896,-569.04,0.00023561,4]
[365891690,1749975044906,-2736.88,0.00023561,4]
[365891691,1749975044916,-522.56,0.00023561,4]
[365891692,1749975044925,-841.3,0.00023561,4]
[365891693,1749975044935,-3703.19,0.00023561,4]
[365891694,1749975044944,-3048.92,0.00023561,4]
[365891695,1749975044954,-2924.58,0.00023561,4]
[365891696,1749975044963,-564.7,0.00023561,4]
[365891697,1749975044973,-427.07349668,0.00023561,4]
[365891698,1749975044982,-606.84,0.00023561,4]
[365891699,1749975044992,-151.0,0.00023561,7]
[365891700,1749975045002,-460.0,0.00023561,4]
[365891701,1749975045011,-1203.76,0.00023561,4]
[365891702,1749975045020,-1551.83,0.00023561,4]
[365891703,1749975045030,-1455.59,0.00023561,4]
[365891704,1749975045040,-460.0,0.00023561,4]
[365891705,1749975045049,-151.0,0.00023561,7]
[365891706,1749975045059,-460.0,0.00023561,4]
[365891707,1749975045068,-566.41,0.00023561,4]
[365891708,1749975045077,-460.28,0.00023561,4]
[365891709,1749975045087,-460.0,0.00023561,4]
[365891710,1749975045096,-340.66,0.00023561,4]
[365891712,1749975045106,-829.02,0.00023561,4]
[365891714,1749975045115,-1462.87,0.00023561,4]
[365891716,1749975045125,-460.0,0.00023561,4]
[365891718,1749975045134,-460.0,0.00023561,4]
[365891720,1749975045144,-1687.78,0.00023561,4]
[365891722,1749975045153,-472.55,0.00023561,4]
[365891724,1749975045162,-460.0,0.00023561,4]
[365891726,1749975045172,-460.0,0.00023561,4]
[365891727,1749975045181,-735.37,0.00023561,4]
[365891728,1749975045190,-460.0,0.00023561,4]
[365891729,1749975045200,-460.0,0.00023561,4]
[365891730,1749975045209,-460.0,0.00023561,4]
[365891731,1749975045219,-1751.81,0.00023561,4]
[365891732,1749975045228,-460.0,0.00023561,4]
[365891733,1749975045237,-460.0,0.00023561,4]
[365891734,1749975045248,-460.0,0.00023561,4]
[365891735,1749975045257,-2193.18,0.00023561,4]
[365891736,1749975045266,-460.0,0.00023561,4]
[365891737,1749975045275,-327.42361,0.00023561,7]
[365891738,1749975045284,-327.42361,0.00023561,7]
[365891739,1749975045293,-460.0,0.00023561,4]
[365891740,1749975045302,-460.0,0.00023561,4]
[365891741,1749975045311,-1554.15,0.00023561,4]
[365891742,1749975045320,-574.44,0.00023561,4]
[365891743,1749975045330,-2276.37,0.00023561,4]
[365891744,1749975045339,-654.7,0.00023561,4]
[365891745,1749975045349,-500.0,0.00023575,2]
[365891746,1749975045358,-500.0,0.0002358,9]
[365891747,1749975045368,-500.0,0.0002358,9]
[365891748,1749975045378,-151.0,0.000236,6]
[365891749,1749975045388,-151.0,0.000236,6]
[365891750,1749975045397,-168.0,0.00023603,2]
[365891751,1749975045406,-2000.0,0.00023616,2]
[365891752,1749975045416,-1000.0,0.00023628,2]
[365891753,1749975045426,-158.50228441,0.00023628,2]
[365891754,1749975045435,-1000.0,0.00023628,2]
[365891755,1749975045444,-500.0,0.00023629,2]
[365891756,1749975045453,-244.10651232,0.00023637,3]
[365891757,1749975045462,-151.0,0.00023663,7]
[365891758,1749975045471,-186.980213,0.00023663,7]
[365891759,1749975045480,-186.980213,0.00023663,7]
[365891760,1749975045489,-379.214472,0.00023663,2]
[365891761,1749975045498,-379.214472,0.00023663,2]
[365891762,1749975045507,-2098.80716058,0.00023693,9]
[365891763,1749975045516,-21829.62147169,0.000237,7]
[365891764,1749975045525,-151.0,0.000237,7]
[365891765,1749975045535,-151.0,0.000237,7]
[365891766,1749975045544,-151.0,0.000237,7]
[365891767,1749975045553,-383.560932,0.000237,7]
[365891768,1749975045562,-383.560932,0.000237,7]
[365891769,1749975045571,-639.0,0.000237,2]
[365891770,1749975045581,-3480.64135151,0.000237,2]
[365891771,1749975045590,-500.0,0.00023704,2]
[365891772,1749975045599,-500.0,0.00023719,2]
[365891773,1749975045609,-500.0,0.00023728,2]
[365891774,1749975045618,-213.32089821,0.00023753,7]
[365891775,1749975045628,-1000.0,0.00023753,7]
[365891776,1749975045637,-1000.0,0.00023753,7]
[365891777,1749975045647,-1000.0,0.00023753,7]
[365891778,1749975045656,-1000.0,0.00023753,7]
[365891779,1749975045666,-1000.0,0.00023753,7]
[365891780,1749975045675,-1000.0,0.00023753,7]
[365891781,1749975045685,-1000.0,0.00023753,7]
[365891782,1749975045694,-1000.0,0.00023753,7]
[365891783,1749975045708,-1000.0,0.00023753,7]
[365891784,1749975045717,-1000.0,0.00023753,7]
[365891785,1749975045727,-1000.0,0.00023753,7]
[365891786,1749975045735,-1000.0,0.00023753,7]
[365891787,1749975045745,-1000.0,0.00023753,7]
[365891788,1749975045755,-1000.0,0.00023753,7]
[365891789,1749975045764,-924.60234557,0.00023753,7]
[365891790,1749975045774,-742.09,0.00023767,7]
[365891791,1749975045784,-501.65890684,0.00023773,2]
[365891792,1749975045792,-500.0,0.00023773,2]
[365891793,1749975045803,-500.0,0.00023773,2]
[365891794,1749975045812,-500.0,0.00023773,2]
[365891795,1749975045821,-500.0,0.00023773,2]
[365891796,1749975045830,-500.0,0.00023773,2]
[365891797,1749975045840,-500.0,0.00023773,2]
[365891798,1749975045849,-519.043125,0.00023773,2]
[365891799,1749975045858,-500.0,0.00023773,2]
[365891800,1749975045868,-500.0,0.00023773,2]
[365891801,1749975045877,-500.0,0.00023773,2]
[365891802,1749975045887,-500.0,0.00023773,2]
[365891803,1749975045896,-500.0,0.00023773,2]
[365891804,1749975045906,-500.0,0.00023773,2]
[365891805,1749975045916,-500.0,0.00023773,2]
[365891806,1749975045925,-500.0,0.00023773,2]
[365891807,1749975045935,-500.0,0.00023773,2]
[365891808,1749975045944,-600.0,0.00023773,2]
[365891809,1749975045954,-500.0,0.00023773,2]
[365891810,1749975045963,-500.0,0.00023773,2]
[365891811,1749975045973,-1318.3094263,0.00023778,11]
[365891812,1749975045983,-500.0,0.0002378,5]
[365891814,1749975045992,-596.53017069,0.0002378,5]
[365891816,1749975046001,-7349.23876323,0.0002378,5]
[365891818,1749975046011,-327.42361,0.0002378,7]
[365891821,1749975046025,-327.42361,0.0002378,7]
[365891823,1749975046034,-33441.57245565,0.00023788,2]
[365891825,1749975046044,-200.530752,0.00023788,7]
[365891827,1749975046053,-151.0,0.00023788,7]
[365891829,1749975046062,-500.0,0.00023788,2]
[365891831,1749975046071,-151.0,0.00023788,7]
[365891833,1749975046080,-151.0,0.00023788,7]
[365891835,1749975046090,-500.0,0.00023789,2]
[365891837,1749975046099,-207.93432221,0.00023799,2]
[365891840,1749975046109,-8181.63487599,0.000238,2]
[365891842,1749975046119,-15149.18530065,0.000238,2]
[365891844,1749975046128,-2469.89,0.000238,2]
[365891845,1749975046138,-2010.93,0.000238,3]
[365891847,1749975046148,-156.0,0.000238,2]
[365891849,1749975046157,-271467.21872984,0.000238,2]
[365891860,1749975046256,-111793.00291052,0.000238,2]
[365891862,1749975046268,-1045.14814121,0.000238,2]
[365891865,1749975046280,-3191.54064329,0.000238,2]
[365891867,1749975046317,-160.66405686,0.000205,2]
[365891869,1749975046326,-238.35534035,0.000238,2]
[365891871,1749975046337,-800.25589847,0.000238,2]
[365891881,1749975048218,-5000.0,0.00020422,2]
[365891882,1749975048232,-205.28753229,0.00021062,2]
[365891883,1749975048245,-347.60761814,0.00021917,4]
[365891884,1749975048258,-460.0,0.00021917,4]
[365891885,1749975048269,-460.0,0.00021917,4]
[365891886,1749975048280,-1050.91110605,0.00022191,2]
[365891887,1749975048291,-460.0,0.00022191,4]
[365891888,1749975048303,-1000.0,0.000222,2]
[365891889,1749975048314,-460.0,0.00022465,4]
[365891890,1749975048327,-1000.0,0.000227,2]
[365891891,1749975048340,-1000.0,0.000232,2]
[365891892,1749975048353,-1684.16,0.00023561,4]
[365891893,1749975048365,-1000.0,0.000237,2]
[365891894,1749975048381,-20767.28378507,0.000238,2]
[365891895,1749975048395,-24257.17233348,0.000238,3]
[365891917,1749975049751,-460.0,0.00021917,4]
[365891918,1749975049761,-460.0,0.00022191,4]
[365891919,1749975049771,-460.0,0.00022191,4]
[365891920,1749975049782,-482.2,0.00022465,4]
[365891921,1749975049791,-142.852943,0.00022465,4]
[365891923,1749975092284,7721.25971156,0.0002,3]
[365891924,1749975092309,18090.007625,0.0002,3]
[365891925,1749975092332,18090.007625,0.0002,3]
[365891926,1749975092355,18090.007625,0.0002,3]
[365891927,1749975092378,18090.007625,0.0002,3]
[365891928,1749975092401,7034.12717923,0.0002,3]
[365891930,1749975110384,177.263199,0.00019699,2]
[365891934,1749975250398,5000.0,0.0002,2]
[365891935,1749975250681,158.0,0.00019407,2]
[365891937,1749975265726,5000.0,0.0002,2]
[365891938,1749975281261,720.61724677,0.0002,2]
[365891939,1749975281285,4279.38275323,0.0002,2]
[365891940,1749975281904,-171.9675294,0.0002001,2]
[365891941,1749975281928,-34.68602108,0.00020082,2]
[365891942,1749975296340,5000.0,0.0002,2]
[365891943,1749975303201,780.31575199,0.0002,2]
[365891944,1749975312381,5000.0,0.0002,2]
[365891946,1749975328097,3030.30911978,0.0002,2]
[365891947,1749975328122,1969.69088022,0.0002,2]
[365891948,1749975344647,5000.0,0.0002,2]
[365891949,1749975360551,179.37227863,0.0002,2]
[365891953,1749975481150,368.4267,0.0002465,120]
[365891954,1749975489003,368.4267,0.0002465,120]
[365891955,1749975491486,406.1297945,0.00019437,2]
[365891957,1749975510337,368.43329,0.0002465,120]
[365891961,1749975803535,5098.6518403,0.00019434,2]
[365891968,1749975950852,259.51324761,0.0002,2]
[365891970,1749975956242,201.27308645,0.00019982,2]
[365891971,1749975957490,301.567197,0.00013699,2]
[365891972,1749976010498,4285.92980872,0.0002,2]
[365891973,1749976029188,-146.92268512,0.00020082,2]
[365891974,1749976029211,-168.0,0.00020107,2]
[365891975,1749976029232,-500.0,0.00020164,2]
[365891976,1749976029257,-100.76920008,0.00020164,2]
[365891977,1749976029290,-880.22766161,0.00020164,2]
[365891978,1749976043141,-65.29006971,0.00020164,2]
[365891979,1749976043164,-301.567197,0.00020187,2]
[365891980,1749976043186,-356.46804462,0.00020411,2]
[365891981,1749976043210,-217.07639272,0.00020412,2]
[365891982,1749976043232,-225.79799584,0.00020419,2]
[365891983,1749976043254,-949.36057215,0.00020503,2]
[365891984,1749976045072,-357.22782034,0.00020503,2]
[365891985,1749976045093,-300.0,0.0002051,2]
[365891986,1749976045112,-1416.49587024,0.00020511,2]
[365891987,1749976047125,-8654.52466624,0.00020511,2]
[365891989,1749976071143,387.87949157,0.00018,2]
[365891990,1749976071169,6292.83062846,0.00018,2]
[365891992,1749976112207,177.373736,0.00019511,2]
[365891993,1749976116699,11619.80326054,0.00018,2]
[365891994,1749976116724,18090.007625,0.00018,2]
[365891995,1749976116749,9302.74801284,0.00018,2]
[365891996,1749976117458,2531.78246226,0.0002,2]
[365891998,1749976123939,1119.22175055,0.0002,2]
[365892001,1749976206408,160.47264137,0.00019607,2]
[365892005,1749976209124,976.80005035,0.000189,2]
[365892006,1749976210276,160.86426141,0.00019607,2]
[365892008,1749976212873,153.14573323,6.9e-07,2]
[365892009,1749976212983,153.14573323,6.9e-07,2]
[365892010,1749976213071,153.14573323,6.9e-07,2]
[365892011,1749976213166,153.14573323,6.9e-07,2]
[365892018,1749976231705,-500.0,0.00020164,2]
[365892019,1749976231715,-5000.0,0.0002026,2]
[365892020,1749976231724,-189.94184363,0.0002041,2]
[365892021,1749976231733,-51.61659899,0.00020464,2]
[365892028,1749976231971,-277.4781141,0.0002041,2]
[365892047,1749976235216,-279.07771885,0.0002041,2]
[365892066,1749976237791,-644.56892194,0.0002041,2]
[365892067,1749976237801,-162.36479061,0.00020464,2]
[365892070,1749976237811,-1200.0,0.00020508,2]
[365892071,1749976237821,-500.0,0.00020509,2]
[365892073,1749976237831,-500.3111991,0.00020509,2]
[365892075,1749976237841,-500.0,0.00020509,2]
[365892078,1749976237851,-500.0,0.00020509,2]
[365892079,1749976237861,-192.91653483,0.00020509,2]
[365892081,1749976237872,-500.0,0.00020509,2]
[365892082,1749976237882,-500.0,0.00020509,2]
[365892083,1749976237892,-500.0,0.00020509,2]
[365892084,1749976237901,-500.0,0.00020509,2]
[365892085,1749976237912,-500.0,0.00020509,2]
[365892086,1749976237922,-164.9101268,0.00020509,2]
[365892087,1749976237932,-500.0,0.00020509,2]
[365892088,1749976237941,-1409.85168059,0.00020509,2]
[365892089,1749976237952,-500.0,0.00020509,2]
[365892091,1749976237962,-307.06386678,0.00020509,2]
[365892092,1749976237974,-500.0,0.00020509,2]